fUSD/lending_fUSD_20240127
["ID","MTS","AMOUNT","RATE_DAILY","PERIOD"]
[312862241,1706374636291,-370.38059151,0.00022999,2]
[312862242,1706374636313,-500.0,0.00022999,2]
[312862243,1706374636335,-500.0,0.00022999,2]
[312862244,1706374636356,-500.0,0.00022999,2]
[312862245,1706374636378,-500.0,0.00022999,2]
[312862246,1706374636400,-500.0,0.00022999,2]
[312862247,1706374636423,-500.0,0.00022999,2]
[312862248,1706374636445,-500.0,0.00022999,2]
[312862249,1706374636468,-500.0,0.00022999,2]
[312862250,1706374636490,-500.0,0.00022999,2]
[312862251,1706374636511,-500.0,0.00022999,2]
[312862252,1706374636533,-500.0,0.00022999,2]
[312862253,1706374636556,-500.0,0.00022999,2]
[312862254,1706374636580,-500.0,0.00022999,2]
[312862255,1706374636602,-500.0,0.00022999,2]
[312862256,1706374636625,-500.0,0.00022999,2]
[312862257,1706374636647,-500.0,0.00022999,2]
[312862258,1706374636670,-500.0,0.00022999,2]
[312862259,1706374636692,-500.0,0.00022999,2]
[312862260,1706374636715,-500.0,0.00022999,2]
[312862261,1706374636737,-500.0,0.00022999,2]
[312862262,1706374636759,-500.0,0.00022999,2]
[312862263,1706374636781,-500.0,0.00022999,2]
[312862264,1706374636805,-153.249849,0.00022999,2]
[312862265,1706374636828,-500.0,0.00022999,2]
[312862266,1706374636852,-500.0,0.00022999,2]
[312862267,1706374636877,-500.0,0.00022999,2]
[312862268,1706374636900,-500.0,0.00022999,2]
[312862269,1706374636923,-500.0,0.00022999,2]
[312862270,1706374636944,-500.0,0.00022999,2]
[312862271,1706374636967,-500.0,0.00022999,2]
[312862272,1706374636988,-200.0,0.00022999,2]
[312862273,1706374637009,-500.0,0.00022999,2]
[312862274,1706374637035,-500.0,0.00022999,2]
[312862275,1706374637063,-500.0,0.00022999,2]
[312862276,1706374637085,-500.0,0.00022999,2]
[312862277,1706374637109,-500.0,0.00022999,2]
[312862278,1706374637131,-500.0,0.00022999,2]
[312862279,1706374637152,-378.73018864,0.00022999,2]
[312862280,1706374637175,-500.0,0.00022999,2]
[312862281,1706374637196,-375.0,0.00022999,2]
[312862282,1706374637220,-375.0,0.00022999,2]
[312862283,1706374637242,-704403.88669836,0.00023,2]
[312862284,1706374637440,613.52424906,0.00020697,2]
[312862285,1706374637465,786.85602097,0.00020697,2]
[312862286,1706374637721,1686.48741742,0.00020697,2]
[312862287,1706374637744,1683.92109714,0.00020697,2]
[312862288,1706374637826,159.33142403,0.00020697,2]
[312862289,1706374638422,577.75192103,0.00021,2]
[312862290,1706374640538,52.33899619,0.00015523,2]
[312862291,1706374640561,2473.34343839,0.00015523,2]
[312862292,1706374640584,1646.25325029,0.00015523,2]
[312862293,1706374641454,346.34420336,0.00022077,2]
[312862295,1706374650293,161.94812689,0.00020698,2]
[312862296,1706374658538,2311.3953115,0.00015523,2]
[312862297,1706374658561,1860.54037337,0.00015523,2]
[312862298,1706374667414,308.21443755,0.00022999,10]
[312862299,1706374667458,308.21443755,0.00022999,10]
[312862300,1706374667515,308.21443755,0.00022999,10]
[312862301,1706374667566,308.21443755,0.00022999,10]
[312862302,1706374667635,308.21443755,0.00022999,10]
[312862303,1706374676303,161.94812689,0.00020698,2]
[312862304,1706374677860,171.17,0.00021108,2]
[312862305,1706374677909,190.74,0.00026384,10]
[312862306,1706374678548,3318.39550426,0.00015523,2]
[312862327,1706374694258,161.94812689,0.00020698,2]
[312862331,1706374710263,161.94812689,0.00020698,2]
[312862335,1706374715240,750.0,0.00022344,2]
[312862336,1706374724644,3608.92,0.00022264,2]
[312862337,1706374726265,161.94812689,0.00020698,2]
[312862343,1706374746270,167.59117788,0.00020698,2]
[312862344,1706374764445,5807.52596212,0.00021925,2]
[312862345,1706374764468,6688.58403788,0.00021925,2]
[312862346,1706374776082,466.71,0.00021925,2]
[312862347,1706374803034,257.95405647,0.00021925,2]
[312862348,1706374842947,530.84354417,0.00022465,2]
[312862349,1706374843018,2705.0,0.00021925,2]
[312862350,1706374843241,442.54,0.00021925,2]
[312862351,1706374844538,1312.05,0.00020007,2]
[312862352,1706374844761,1312.05,0.00022271,2]
[312862353,1706374853118,305.59,0.00021925,2]
[312862354,1706374859600,500.0,0.00021925,2]
[312862355,1706374865392,2000.0,0.00021919,2]
[312862356,1706374872041,628.82,0.00021919,2]
[312862357,1706374877886,175.49,0.00016712,2]
[312862358,1706374939429,250.0,0.00021919,2]
[312862359,1706374951905,500.0,0.00021919,2]
[312862360,1706374953775,28159.01,0.00021919,2]
[312862361,1706374965040,200.0,0.00021919,2]
[312862362,1706374966504,170.77,0.00021919,2]
[312862363,1706374973057,3069.31,0.00021925,2]
[312862364,1706374977247,2282.71,0.00021925,2]
[312862365,1706374982953,250.0,0.00021931,2]
[312862366,1706374988763,200.0,0.00021931,2]
[312862367,1706374999063,166.44,0.0002194,2]
[312862368,1706375001260,1852.42,0.00021931,2]
[312862369,1706375018898,181.12,0.00021919,2]
[312862370,1706375021842,150.0,0.00021919,2]
[312862371,1706375034186,22337.65880311,0.00021918,2]
[312862372,1706375034207,1562.34119689,0.00021918,2]
[312862373,1706375037424,15291.42,0.00021918,2]
[312862374,1706375057496,224.16,0.00021918,2]
[312862375,1706375073233,200.0,0.00021918,2]
[312862376,1706375084522,3209.72,0.00022094,2]
[312862377,1706375092292,176.61,0.00021898,2]
[312862378,1706375093563,176.61,0.00022446,2]
[312862379,1706375106950,157.91,0.00022087,2]
[312862380,1706375107178,157.91,0.00022154,2]
[312862381,1706375107372,157.91,0.00022222,2]
[312862382,1706375107603,157.91,0.0002229,2]
[312862383,1706375107824,157.91,0.00022357,2]
[312862384,1706375108044,157.91,0.00022425,2]
[312862385,1706375108278,157.91,0.00022493,2]
[312862386,1706375125393,2047.0,0.00021899,2]
[312862387,1706375134596,176.52540934,0.00022446,2]
[312862388,1706375135177,155.28399107,0.00022446,2]
[312862389,1706375135293,3047.99,0.00021899,2]
[312862390,1706375136141,939.5661534,0.00022446,2]
[312862391,1706375137435,156.86047358,0.00022446,2]
[312862392,1706375137742,669.86521771,0.00022446,2]
[312862393,1706375137851,750.0,0.00021899,2]
[312862394,1706375143471,373.91716461,0.00021981,2]
[312862395,1706375151002,171.17,0.00017519,2]
[312862396,1706375151905,3007.43,0.00021899,2]
[312862397,1706375208194,190.74,0.00021915,10]
[312862398,1706375208412,190.74,0.00024063,10]
[312862399,1706375208630,501.39,0.00021915,2]
[312862400,1706375220678,150.78,0.0002189,2]
[312862401,1706375283267,2000.0,0.00021885,2]
[312862403,1706375312689,500.0,0.0002189,2]
[312862404,1706375317425,2705.0,0.0002189,2]
[312862407,1706375331971,1180.84,0.00019967,2]
[312862408,1706375332190,1180.84,0.00022231,2]
[312862411,1706375355001,500.0,0.0002188,2]
[312862412,1706375358100,-997.92315115,0.00022552,2]
[312862414,1706375386508,442.8225161,0.00020517,5]
[312862417,1706375425508,165.30478149,0.00022451,2]
[312862418,1706375428833,200.0,0.00021885,2]
[312862419,1706375430285,200.0,0.00021885,2]
[312862424,1706375432968,-3049.10614402,0.0002255,2]
[312862425,1706375432978,-517.58795719,0.0002255,2]
[312862426,1706375432987,-1168.17746964,0.00022551,2]
[312862427,1706375432999,-94.54011851,0.00022551,2]
[312862428,1706375433010,-374.02986129,0.00022551,2]
[312862429,1706375433024,-147.83633325,0.00022551,2]
[312862430,1706375433034,-157.91,0.00022561,2]
[312862431,1706375433043,-180.7114,0.00022565,2]
[312862432,1706375433052,-157.91,0.00022628,2]
[312862433,1706375433061,-157.91,0.00022696,2]
[312862434,1706375433071,-157.91,0.00022764,2]
[312862435,1706375433081,-300.0,0.00022795,2]
[312862436,1706375433090,-150.0,0.00022797,2]
[312862437,1706375433099,-23199.41226556,0.00022798,2]
[312862438,1706375433112,-339.95296193,0.00022798,2]
[312862439,1706375433125,-499.51621629,0.00022798,2]
[312862440,1706375433147,-635.3927603,0.00022798,2]
[312862441,1706375433160,-1839.24926668,0.00022798,2]
[312862442,1706375433171,-5465.27405715,0.00022798,2]
[312862443,1706375433184,-1432.18835877,0.00022798,2]
[312862444,1706375433198,-5144.37178909,0.00022798,2]
[312862445,1706375433221,-28767.71112423,0.00022798,2]
[312862446,1706375433234,-6848.25431964,0.00022799,2]
[312862447,1706375433245,-523.8010228,0.00022799,2]
[312862449,1706375433255,-157.91,0.00022831,2]
[312862452,1706375433265,-181.12,0.00022832,2]
[312862454,1706375433277,-220.76,0.00022832,5]
[312862456,1706375433287,-1178.99,0.00022895,2]
[312862458,1706375433297,-487.99435337,0.00022896,2]
[312862460,1706375433308,-155.0,0.00022896,2]
[312862461,1706375433318,-1000.0,0.00022896,2]
[312862462,1706375433329,-524.08876313,0.00022897,2]
[312862463,1706375433339,-1058887.06991646,0.00022898,2]
[312862464,1706375433349,-151.38434792,0.00022899,2]
[312862465,1706375433358,-151.38434791,0.00022899,2]
[312862466,1706375433368,-157.91,0.00022899,2]
[312862467,1706375433378,-151.38434791,0.00022899,2]
[312862468,1706375433387,-151.38434791,0.00022899,2]
[312862469,1706375433397,-151.38434791,0.00022899,2]
[312862470,1706375433407,-151.38434791,0.00022899,2]
[312862471,1706375433416,-151.38434791,0.00022899,2]
[312862472,1706375433426,-151.38434791,0.00022899,2]
[312862473,1706375433435,-151.38434791,0.00022899,2]
[312862474,1706375433444,-151.38434791,0.00022899,2]
[312862475,1706375433453,-151.38434791,0.000229,2]
[312862476,1706375433462,-151.38434791,0.000229,2]
[312862477,1706375433471,-151.38434791,0.000229,2]
[312862478,1706375433482,-151.38434791,0.000229,2]
[312862479,1706375433491,-151.38434791,0.000229,2]
[312862480,1706375433501,-151.38434791,0.000229,2]
[312862481,1706375433511,-151.38434791,0.000229,2]
[312862482,1706375433520,-151.38434791,0.000229,2]
[312862483,1706375433530,-151.38434791,0.000229,2]
[312862484,1706375433540,-151.38434791,0.000229,2]
[312862485,1706375433549,-153.93858529,0.000229,2]
[312862486,1706375433562,-5068.77085048,0.000229,2]
[312862487,1706375433572,-320.15715228,0.000229,2]
[312862488,1706375433581,-157.91,0.00022967,2]
[312862489,1706375433590,-176.61,0.00022994,2]
[312862490,1706375433600,-384.99423147,0.00022997,2]
[312862491,1706375433609,-289.09716601,0.00022997,2]
[312862492,1706375433619,-245.28549074,0.00022997,2]
[312862493,1706375433793,-1179.40006798,0.00022998,2]
[312862494,1706375433802,-362.14263408,0.00022998,2]
[312862495,1706375433811,-377.11126663,0.00022998,2]
[312862496,1706375433821,-155.41215612,0.00022998,2]
[312862497,1706375433830,-270.19585856,0.00022999,2]
[312862498,1706375433839,-400.95271343,0.00022999,2]
[312862499,1706375433851,-155.0,0.00022999,2]
[312862500,1706375433861,-228.79454347,0.00022999,2]
[312862501,1706375433869,-448.0272237,0.00022999,2]
[312862502,1706375433879,-350.0,0.00022999,2]
[312862503,1706375433888,-209014.14682058,0.00023,2]
[312862504,1706375433900,-5335.54724617,0.00023,2]
[312862505,1706375433912,-20076.78434843,0.00023,2]
[312862507,1706375437634,-213.36543944,0.000229,2]
[312862508,1706375437644,-410.51713552,0.00022997,2]
[312862509,1706375437654,-501.84243104,0.00023,2]
[312862510,1706375437690,-849.22076906,0.00023,2]
[312862511,1706375437745,-29639.30261878,0.00023,2]
[312862512,1706375437757,-699.0577829,0.00023,2]
[312862513,1706375437857,-45711.88496214,0.00023,2]
[312862514,1706375437868,-764.65,0.00023,2]
[312862515,1706375437879,-255632.23875854,0.00023,2]
[312862516,1706375437890,-588.31503461,0.00023,2]
[312862517,1706375437966,-1195.43925594,0.00023,2]
[312862518,1706375437979,-24403.38697746,0.00023,2]
[312862738,1706375440214,-351.33923311,0.00023,2]
[312862745,1706375440270,-513.84877829,0.00023,2]
[312862747,1706375440282,-300.0,0.00023,2]
[312862753,1706375440327,-1467.29741007,0.00023,2]
[312862755,1706375440338,-708.89006727,0.00023,2]
[312862757,1706375440350,-561.6645378,0.00023,2]
[312862762,1706375440384,-67550.21626184,0.00023,2]
[312862768,1706375440442,-4862.79256605,0.00023,2]
[312862771,1706375440453,-7641.57211398,0.00023,2]
[312862773,1706375440465,-193322.55456901,0.00023,2]
[312862775,1706375440477,-7420.13946109,0.00023,2]
[312862777,1706375440490,-5170.6015957,0.00023,2]
[312862882,1706375441858,-409.47044411,0.00023,2]
[312862883,1706375441910,-2843142.14500894,0.00023,2]
[312862884,1706375441920,-5000.0,0.00023,2]
[312862885,1706375441929,-1210748.42390603,0.00023,2]
[312862886,1706375441938,-466.71,0.00023021,2]
[312862887,1706375441947,-157.91,0.00023034,2]
[312862888,1706375441956,-157.91,0.00023102,2]
[312862889,1706375441965,-7231.22096402,0.0002313,2]
[312862890,1706375441975,-157.91,0.0002317,2]
[312862891,1706375441985,-157.91,0.00023238,2]
[312862892,1706375441994,-162.93,0.00023294,2]
[312862893,1706375442003,-176.61,0.00023542,2]
[312862894,1706375442013,-3007.43,0.00023543,2]
[312862895,1706375442023,-181.12,0.00023745,2]
[312862896,1706375442031,-167.65,0.00023948,2]
[312862897,1706375442040,-202.0593939,0.00024,2]
[312862898,1706375442049,-230.27,0.00024025,2]
[312862899,1706375442059,-150.78,0.00024079,2]
[312862900,1706375442068,-176.61,0.0002409,2]
[312862901,1706375442077,-466.71,0.00024118,2]
[312862902,1706375442087,-315.44,0.00024139,2]
[312862903,1706375442098,-4119.37,0.00024384,2]
[312862904,1706375442108,-399.22,0.00024384,2]
[312862905,1706375442117,-1180.84,0.00024495,2]
[312862906,1706375442126,-6848.2543196,0.00024564,2]
[312862907,1706375442136,-201.74018182,0.00024638,2]
[312862908,1706375442149,-467.66,0.00024658,2]
[312862909,1706375442159,-250.0,0.00024658,2]
[312862910,1706375442168,-181.12,0.00024659,2]
[312862911,1706375442177,-153.93858529,0.00024899,2]
[312862912,1706375442188,-550.0,0.00025,3]
[312862913,1706375442197,-210.0,0.00025077,2]
[312862914,1706375442206,-467.66,0.0002509,2]
[312862915,1706375442215,-3007.43,0.00025187,2]
[312862916,1706375442225,-466.71,0.00025214,2]
[312862917,1706375442235,-467.66,0.00025523,2]
[312862918,1706375442245,-467.66,0.00025955,2]
[312862919,1706375442255,-150.78,0.00026268,2]
[312862920,1706375442264,-171.17,0.00026279,2]
[312862921,1706375442273,-269.89100001,0.0002631,5]
[312862922,1706375442282,-466.71,0.0002631,2]
[312862923,1706375442291,-6848.2543196,0.0002633,2]
[312862924,1706375442300,-200.0,0.00026384,2]
[312862925,1706375442309,-467.66,0.00026388,2]
[312862926,1706375442319,-1180.84,0.00026759,2]
[312862927,1706375442328,-467.66,0.0002682,2]
[312862928,1706375442337,-3007.43,0.00026831,2]
[312862929,1706375442346,-205.0,0.00026857,2]
[312862930,1706375442356,-150.0,0.0002688,2]
[312862931,1706375442365,-150.0,0.0002688,2]
[312862932,1706375442375,-150.0,0.0002688,2]
[312862933,1706375442385,-150.0,0.0002688,2]
[312862934,1706375442394,-150.0,0.0002688,2]
[312862935,1706375442404,-150.0,0.0002688,2]
[312862936,1706375442413,-150.0,0.0002688,2]
[312862937,1706375442422,-150.0,0.0002688,2]
[312862938,1706375442431,-153.93858529,0.00027,2]
[312862940,1706375442439,-600.0,0.00027,3]
[312862943,1706375442448,-467.66,0.00027253,2]
[312862946,1706375442458,-155.0,0.00027397,2]
[312862949,1706375442467,-1000.0,0.00027401,2]
[312862954,1706375442476,-12932.00839583,0.000275,2]
[312862959,1706375442487,-1983.92,0.00027671,2]
[312862964,1706375442496,-467.66,0.00027686,2]
[312862968,1706375442505,-150.0,0.00028,2]
[312862973,1706375442514,-6848.2543196,0.00028095,2]
[312862976,1706375442524,-467.66,0.00028118,2]
[312862979,1706375442533,-3007.43,0.00028474,2]
[312862982,1706375442542,-467.66,0.00028551,2]
[312862984,1706375442552,-1983.92,0.00028695,2]
[312862987,1706375442561,-155.0,0.00028767,2]
[312862990,1706375442570,-467.66,0.00028983,2]
[312862993,1706375442579,-588.40515981,0.00029,2]
[312862995,1706375442589,-650.0,0.00029,3]
[312862997,1706375442598,-1180.84,0.00029023,2]
[312862999,1706375442608,-205.0,0.00029067,5]
[312863001,1706375442617,-153.93858529,0.000291,2]
[312863002,1706375442626,-467.66,0.00029416,2]
[312863003,1706375442636,-1983.92,0.00029719,2]
[312863005,1706375442645,-467.66,0.00029848,2]
[312863006,1706375442655,-6848.2543196,0.0002986,2]
[312863008,1706375442665,-71263.87558582,0.000299,2]
[312863009,1706375442674,-1863.0,0.000299,2]
[312863011,1706375442683,-167.65,0.00029934,2]
[312863012,1706375442692,-155.0,0.0003,2]
[312863014,1706375442702,-42627.50594063,0.0003,2]
[312863016,1706375442711,-3050.71772353,0.0003,2]
[312863017,1706375442720,-7181.0,0.0003,2]
[312863019,1706375442730,-160.0,0.0003,2]
[312863020,1706375442741,-1000.0,0.0003,2]
[312863021,1706375442751,-3007.43,0.00030118,2]
[312863022,1706375442760,-154.17,0.00030137,2]
[312863023,1706375442769,-155.0,0.00030137,2]
[312863024,1706375442779,-467.66,0.00030281,2]
[312863025,1706375442788,-2047.0,0.00030659,2]
[312863026,1706375442798,-467.66,0.00030714,2]
[312863027,1706375442807,-1983.92,0.00030743,2]
[312863028,1706375442816,-1000.0,0.00030826,2]
[312863029,1706375442827,-700.0,0.00031,3]
[312863030,1706375442836,-467.66,0.00031146,2]
[312863031,1706375442845,-153.93858529,0.00031201,2]
[312863032,1706375442855,-205.0,0.00031276,9]
[312863033,1706375442864,-1180.84,0.00031287,2]
[312863034,1706375442873,-5068.77085048,0.000314,2]
[312863035,1706375442882,-320.15715228,0.000314,2]
[312863036,1706375442891,-213.36543942,0.000314,2]
[312863037,1706375442901,-155.0,0.00031507,2]
[312863038,1706375442910,-467.66,0.00031579,2]
[312863039,1706375442919,-6848.2543196,0.00031626,3]
[312863040,1706375442928,-180.0,0.00031644,2]
[312863041,1706375442937,-2085.19039552,0.000317,2]
[312863042,1706375442947,-1983.92,0.00031767,2]
[312863043,1706375442956,-11568.4041573,0.000318,3]
[312863044,1706375442966,-156.25094584,0.00032,2]
[312863045,1706375442975,-374.92675683,0.00032,2]
[312863046,1706375442985,-467.66,0.00032011,2]
[312863047,1706375442994,-467.66,0.00032444,2]
[312863048,1706375443003,-201.92098745,0.000325,2]
[312863049,1706375443012,-19442.80135865,0.00032674,2]
[312863050,1706375443021,-150.0,0.00032799,2]
[312863051,1706375443030,-150.0,0.00032799,2]
[312863052,1706375443040,-143232.77674122,0.000328,2]
[312863053,1706375443049,-467.66,0.00032876,2]
[312863054,1706375443058,-275.28,0.00032877,15]
[312863055,1706375443067,-155.0,0.00032877,2]
[312863056,1706375443076,-224.16,0.00032877,120]
[312863057,1706375443085,-153.93858529,0.00033301,2]
[312863058,1706375443095,-6848.2543196,0.00033391,5]
[312863059,1706375443103,-205.0,0.00033486,13]
[312863060,1706375443112,-205.06,0.000335,2]
[312863061,1706375443121,-205.06,0.000335,2]
[312863062,1706375443130,-205.06,0.000335,2]
[312863063,1706375443139,-205.06,0.000335,2]
[312863064,1706375443151,-205.06,0.000335,2]
[312863065,1706375443160,-205.06,0.000335,2]
[312863066,1706375443169,-205.06,0.000335,2]
[312863067,1706375443178,-205.06,0.000335,2]
[312863068,1706375443188,-205.06,0.000335,2]
[312863069,1706375443197,-205.06,0.000335,2]
[312863070,1706375443206,-205.06,0.000335,2]
[312863071,1706375443215,-205.06,0.000335,2]
[312863072,1706375443225,-205.06,0.000335,2]
[312863073,1706375443236,-205.06,0.000335,2]
[312863074,1706375443245,-205.06,0.000335,2]
[312863075,1706375443254,-205.06,0.000335,2]
[312863076,1706375443263,-205.06,0.000335,2]
[312863077,1706375443272,-205.06,0.000335,2]
[312863078,1706375443281,-205.06,0.000335,2]
[312863079,1706375443290,-205.06,0.000335,2]
[312863080,1706375443299,-1180.84,0.0003355,2]
[312863081,1706375443308,-528.0,0.00033988,5]
[312863082,1706375443316,-155.0,0.00034247,2]
[312863083,1706375443326,-1000.0,0.00034251,2]
[312863084,1706375443335,-662.12845123,0.000349,2]
[312863085,1706375443345,-662.12845121,0.000349,2]
[312863086,1706375443354,-662.12845121,0.000349,2]
[312863087,1706375443364,-662.12845121,0.000349,2]
[312863088,1706375443373,-662.12845121,0.000349,2]
[312863089,1706375443382,-662.12845121,0.000349,2]
[312863090,1706375443392,-662.12845121,0.000349,2]
[312863091,1706375443401,-662.12845121,0.000349,2]
[312863092,1706375443410,-154.00628449,0.00035,2]
[312863093,1706375443419,-3000.0,0.00035,2]
[312863094,1706375443428,-8703.5699873,0.00035,2]
[312863095,1706375443437,-6848.2543196,0.00035157,7]
[312863096,1706375443447,-153.93858529,0.00035402,2]
[312863097,1706375443456,-662.12845121,0.00035431,2]
[312863098,1706375443465,-150.0,0.00035616,2]
[312863099,1706375443475,-300.0,0.00035616,7]
[312863100,1706375443484,-450.0,0.00035616,12]
[312863101,1706375443494,-150.0,0.00035616,17]
[312863102,1706375443503,-4119.37,0.00035616,2]
[312863103,1706375443513,-399.22,0.00035616,2]
[312863104,1706375443522,-205.0,0.00035695,17]
[312863105,1706375443531,-15296.76,0.000357,7]
[312863106,1706375443540,-1180.84,0.00035814,2]
[312863107,1706375443550,-167.65,0.00035921,2]
[312863108,1706375443560,-26815.23,0.000364,7]
[312863109,1706375443570,-275.28,0.00036613,15]
[312863110,1706375443579,-36482.80437918,0.0003666,2]
[312863111,1706375443588,-160.0,0.000368,3]
[312863112,1706375443598,-160.0,0.000368,3]
[312863113,1706375443607,-6848.2543196,0.00036922,10]
[312863114,1706375443616,-20137.77283466,0.00037,21]
[312863115,1706375443625,-47257.92,0.00037,7]
[312863116,1706375443635,-662.12845121,0.0003701,2]
[312863117,1706375443645,-5537.77196947,0.00037011,2]
[312863118,1706375443653,-5000.0,0.00037011,2]
[312863119,1706375443662,-5000.0,0.00037011,2]
[312863120,1706375443671,-5000.0,0.00037011,2]
[312863121,1706375443681,-5000.0,0.00037011,2]
[312863122,1706375443690,-93129.62896101,0.00037153,15]
[312863123,1706375443699,-2760.97316304,0.00037209,15]
[312863124,1706375443708,-667.63160981,0.00037323,15]
[312863125,1706375443717,-153.93858529,0.00037502,2]
[312863126,1706375443727,-1000.0,0.00037676,2]
[312863127,1706375443737,-1701.64392942,0.000377,3]
[312863128,1706375443746,-438.91554687,0.00037877,2]
[312863129,1706375443755,-308.21443756,0.00037879,30]
[312863130,1706375443764,-558075.07746255,0.0003788,2]
[312863131,1706375443773,-438.91554687,0.00037897,2]
[312863132,1706375443782,-150.0,0.00037899,2]
[312863133,1706375443791,-150.0,0.00037899,2]
[312863134,1706375443800,-674886.599631,0.000379,3]
[312863135,1706375443810,-8703.5699873,0.000379,2]
[312863136,1706375443819,-205.0,0.00037905,21]
[312863137,1706375443828,-438.91554687,0.00037997,2]
[312863138,1706375443837,-128311.4450119,0.00038,2]
[312863139,1706375443846,-1180.84,0.00038078,2]
[312863140,1706375443855,-150.0,0.00038356,2]
[312863141,1706375443959,-662.12845121,0.00038588,2]
[312863142,1706375443969,-6848.2543196,0.00038687,12]
[312863143,1706375443979,-5509.51164222,0.0003888,2]
[312863144,1706375443988,-5509.5116422,0.0003888,2]
[312863145,1706375443998,-5509.5116422,0.0003888,2]
[312863146,1706375444007,-5509.5116422,0.0003888,2]
[312863147,1706375444016,-5509.5116422,0.0003888,2]
[312863148,1706375444026,-5509.5116422,0.0003888,2]
[312863150,1706375444035,-282.4270994,0.0003898,2]
[312863151,1706375444044,-1430.80823834,0.00039,2]
[312863153,1706375444054,-296.41099989,0.00039,5]
[312863154,1706375444062,-213.43,0.0003926,2]
[312863155,1706375444071,-1000.0,0.000393,15]
[312863156,1706375444080,-1000.0,0.000393,15]
[312863157,1706375444090,-150.0,0.00039366,2]
[312863158,1706375444098,-205.06,0.000394,3]
[312863159,1706375444108,-205.06,0.000394,3]
[312863160,1706375444118,-205.06,0.000394,3]
[312863161,1706375444127,-205.06,0.000394,3]
[312863162,1706375444136,-205.06,0.000394,3]
[312863164,1706375444149,-205.06,0.000394,3]
[312863165,1706375444159,-205.06,0.000394,3]
[312863166,1706375444168,-205.06,0.000394,3]
[312863167,1706375444177,-205.06,0.000394,3]
[312863168,1706375444187,-205.06,0.000394,3]
[312863169,1706375444196,-205.06,0.000394,3]
[312863170,1706375444205,-205.06,0.000394,3]
[312863171,1706375444216,-205.06,0.000394,3]
[312863172,1706375444226,-205.06,0.000394,3]
[312863173,1706375444236,-205.06,0.000394,3]
[312863174,1706375444245,-205.06,0.000394,3]
[312863175,1706375444255,-205.06,0.000394,3]
[312863176,1706375444264,-205.06,0.000394,3]
[312863177,1706375444273,-205.06,0.000394,3]
[312863178,1706375444283,-205.06,0.000394,3]
[312863179,1706375444292,-896.622,0.00039554,2]
[312863180,1706375444301,-837.0,0.00039554,2]
[312863181,1706375444310,-1004.091,0.00039554,2]
[312863182,1706375444320,-427.0,0.00039554,2]
[312863183,1706375444329,-1938.0,0.00039554,2]
[312863184,1706375444338,-999.0,0.00039554,2]
[312863185,1706375444347,-1000.0,0.000396,15]
[312863186,1706375444357,-153.93858529,0.00039603,5]
[312863187,1706375444367,-236.0,0.00039608,2]
[312863188,1706375444376,-1138.0,0.00039608,2]
[312863189,1706375444387,-860.0,0.00039608,2]
[312863190,1706375444397,-319.0,0.00039608,2]
[312863191,1706375444406,-2912.0,0.00039617,2]
[312863192,1706375444416,-1199.928,0.00039617,2]
[312863193,1706375444426,-500.0,0.00039669,2]
[312863194,1706375444435,-200.0,0.00039669,2]
[312863195,1706375444444,-15296.76,0.000397,7]